Cogmind - Beta 9.3 @@@ ROGUE MODE // 2020.01.06 @ 17:23:44 Player: C3D2 Result: Destroyed by S-10 Pest via exploding Nuclear Reactor Performance ------------- Evolutions (0) 0 Regions Visited (1) 200 Robots Destroyed (9) 45 Value Destroyed (241) 241 Prototype IDs (0) 0 Alien Tech Used (0) 0 Bonus (0) 0 TOTAL SCORE: 486 Bonus ------- None Cogmind --------- Core Integrity 0/250 Matter 280/300 Energy 114/125 System Corruption 0% Temperature Cool (0) Movement Treading (160) Location -10/Materials Parts ------- > --- POWER (1) -------- Light Ion Engine > --- PROPULSION (2) --- Light Treads > --- UTILITY (2) ------ Improved Heat Sink Medium Storage Unit > --- WEAPON (2) ------- (None) > --- INVENTORY (8) ---- Medium Storage Unit High-capacity Battery (400) Peak State ------------ > --- POWER ------------ Light Ion Engine > --- PROPULSION ------- Light Treads Light Treads > --- UTILITY ---------- Small Storage Unit High-capacity Battery > --- WEAPON ----------- Beam Cannon Beam Cannon > --- INVENTORY -------- EM Pulse Gun Light Assault Rifle [Rating: 7] Favorites ----------- Power Light Ion Engine Engine Light Ion Engine Propulsion Light Treads Treads Light Treads Utility High-capacity Battery Device Improved Heat Sink Storage High-capacity Battery Processor Targeting Computer Weapon Beam Cannon Energy Gun EM Pulse Gun Energy Cannon Beam Cannon Ballistic Gun Light Assault Rifle Special Weapon Welding Torch Build | -11 -10 ------- Run | Scr Mat Slots Evolved . | . . Power . | . . Propulsion . | . . Utility . | . . Weapon . | . . Parts Attached 17 | 5 12 Power 3 | 1 2 Engine 3 | 1 2 Core . | . . Reactor . | . . Propulsion 2 | 2 . Treads 2 | 2 . Leg . | . . Wheel . | . . Hover . | . . Flight . | . . Utility 5 | . 5 Device 1 | . 1 Storage 3 | . 3 Processor 1 | . 1 Hackware . | . . Protection . | . . Artifact . | . . Weapon 7 | 2 5 Energy Gun 1 | 1 . Energy Cannon 4 | . 4 Ballistic Gun 1 | 1 . Ballistic Cannon . | . . Launcher . | . . Special Weapon 1 | . 1 Impact Weapon . | . . Slashing Weapon . | . . Piercing Weapon . | . . Special Melee Weapon . | . . Unidentified Prototypes . | . . Parts Lost 8 | . 8 Power 2 | . 2 Propulsion 1 | . 1 Utility 1 | . 1 Weapon 4 | . 4 Highest Loss Streak 6 | . 6 Average Slot Usage (%) 97 | . 97 Engine 13 | . 13 Treads 28 | . 28 Storage 26 | . 26 Energy Cannon 25 | . 25 Naked Turns . | . . Heaviest Build 21 | 6 21 Greatest Support 40 | 40 40 Greatest Overweight (x) . | . . Average Overweight (x) . | . . Largest Inventory Capacity 8 | 4 8 Average Capacity 5 | 4 6 Most Carried 5 | 4 5 Average Carried 3 | 1 3 Final Capacity 8 | 4 8 Final Carried 3 | 3 2 Class Distribution -------------------- 100% | Mutant Dominant Class ---------------- Mutant | -10/Materials Resources | -11 -10 ----------- Run | Scr Mat Matter Collected 320 | 250 70 Remotely . | . . Salvage Created 241 | . 241 Parts 20 | . 20 Haulers Intercepted . | . . Recyclers Shooed . | . . Parts Field Recycled . | . . Retrieved Matter . | . . Parts Self-Destructed . | . . Prevented . | . . Kills | -11 -10 ------- Run | Scr Mat Combat Hostiles Destroyed 7 | . 7 Cannons 7 | . 7 Classes Destroyed 4 | . 4 Operator 1 | . 1 Watcher 1 | . 1 Swarmer 3 | . 3 Grunt 4 | . 4 Best Kill Streak 4 | . 4 Combat Bots Only 3 | . 3 Max Kills in Single Turn 1 | . 1 Gunslinging . | . . Exploded . | . . Melee . | . . Uniques/NPCs Destroyed . | . . Combat | -11 -10 -------- Run | Scr Mat Damage Taken 983 | . 983 Core 296 | . 296 Absorbed by Shields . | . . Core Remaining (%) 100 | 100 . Volleys Fired 42 | . 42 Largest 2 | . 2 Hottest 120 | . 120 Shots Fired 71 | . 71 Gun . | . . Cannon 63 | . 63 Launcher . | . . Special 8 | . 8 Kinetic . | . . Thermal 71 | . 71 Explosive . | . . Electromagnetic . | . . Robot Hit Streak 6 | . 6 Robot Miss Streak 4 | . 4 Penetration Max . | . . Secondary Targets . | . . Shots Hit Robots 33 | . 33 Core Hits 12 | . 12 Critical Hits . | . . Critical Kills . | . . Critical Parts Destroyed . | . . Melee Attacks . | . . Impact . | . . Slashing . | . . Piercing . | . . Sneak Attacks . | . . Combat Hostiles . | . . Follow-up Attacks . | . . Damage Inflicted 463 | . 463 Guns . | . . Cannons 458 | . 458 Explosions . | . . Melee . | . . Ramming . | . . Kinetic . | . . Thermal 463 | . 463 Explosive . | . . Electromagnetic . | . . Impact . | . . Slashing . | . . Piercing . | . . Highest Corruption . | . . Average Corruption . | . . Corruption Purged . | . . Overload Shots . | . . Overflow Damage 6 | . 6 Projectiles 6 | . 6 Explosions . | . . Melee . | . . Knockbacks . | . . Impact . | . . Kinetic . | . . Secondary . | . . Self-Inflicted Damage . | . . Shots . | . . Rammed . | . . Targets Rammed . | . . Kicked . | . . Crushed . | . . Highest Temperature 424 | . 424 Average Temperature 160 | . 160 Received Heat Transfer 111 | . 111 Effects 2 | . 2 Shutdowns 1 | . 1 Short Circuit 1 | . 1 Siege Activations . | . . Robots Corrupted . | . . Combat Hostiles . | . . Parts Fried . | . . Impact Corruptions . | . . Robots Melted . | . . Combat Hostiles . | . . Parts Melted . | . . Heat Transferred 1012 | . 1012 Parts Sabotaged . | . . Parts Stolen . | . . Parts Stripped . | . . Power Chain Reactions . | . . Missiles Intercepted . | . . Alert | -11 -10 ------- Run | Scr Mat Peak Influence 151 | . 151 Average Influence 48 | . 55 Maximum Alert Level . | . . Low Security (%) 100 | 100 100 Level 1 . | . . Level 2 . | . . Level 3 . | . . Level 4 . | . . Level 5 . | . . High Security . | . . Max Security . | . . Squads Dispatched 3 | . 3 Investigation 1 | . 1 Extermination . | . . Reinforcement 2 | . 2 Assault . | . . Garrison . | . . Intercept . | . . Construction Impeded . | . . Haulers Reinforced . | . . Stealth | -11 -10 --------- Run | Scr Mat Distress Signals 3 | . 3 Communications Jammed . | . . Distress Signals . | . . Times Spotted 15 | . 15 Peak Tracking Total 4 | . 4 Tactical Retreats 1 | . 1 Traps | -11 -10 ------- Run | Scr Mat Traps Triggered . | . . Indirectly . | . . Trap Hack Attempts . | . . Triggered . | . . Disarmed . | . . Reprogrammed . | . . Reused . | . . Traps Extracted . | . . Installed . | . . Triggered . | . . Machines | -11 -10 ---------- Run | Scr Mat Machines Disabled 3 | . 3 Max in Single Turn 1 | . 1 Machines Sabotaged . | . . Garrisons Compromised . | . . Overloaded Fab Kills . | . . Fab Network Shutdowns . | . . Hacking | -11 -10 --------- Run | Scr Mat Machines Accessed 4 | . 4 Terminals 3 | . 3 Fabricators . | . . Repair Stations . | . . Recycling Units 1 | . 1 Scanalyzers . | . . Garrison Access . | . . Total Hacks 9 | . 9 Successful 7 | . 7 Failed 2 | . 2 Catastrophic . | . . Database Lockouts . | . . Manual . | . . Terminals 6 | . 6 Fabricators . | . . Repair Stations . | . . Recycling Units 3 | . 3 Scanalyzers . | . . Garrison Access . | . . Terminal Hacks 4 | . 4 Alert Level 1 | . 1 Locate Traps 1 | . 1 Security Status 1 | . 1 Hauler Manifests 1 | . 1 Fabricator Hacks . | . . Repair Station Hacks . | . . Recycling Unit Hacks 3 | . 3 Recycle Component 1 | . 1 Process 1 | . 1 Report Inventory 1 | . 1 Scanalyzer . | . . Garrison Access Hacks . | . . Unauthorized Hacks . | . . Terminals . | . . Fabricators . | . . Repair Stations . | . . Recycling Units . | . . Scanalyzers . | . . Garrison Access . | . . Data Cores Recovered . | . . Used . | . . Hacking Detections 2 | . 2 Full Trace Events 1 | . 1 Feedback Events . | . . Feedback Blocked . | . . Robot Schematics Acquired . | . . Robots Built . | . . Matter . | . . Time . | . . Total Robot Build Rating . | . . Part Schematics Acquired . | . . Parts Built . | . . Matter . | . . Time . | . . Total Part Build Rating . | . . Parts Repaired . | . . Time . | . . Parts Recycled 1 | . 1 Recycled Matter 43 | . 43 Retrieved Matter . | . . Retrieved Components . | . . Parts Scanalyzed . | . . Part Schematics Acquired . | . . Parts Damaged . | . . Bothacking | -11 -10 ------------ Run | Scr Mat Used RIF Installer . | . . Robots Hacked . | . . Non-combat . | . . Combat . | . . Robot Hacks Applied . | . . Relay Couplers Released . | . . Robots Rewired . | . . Allies Hacked . | . . Hacks Repelled . | . . Allies | -11 -10 -------- Run | Scr Mat Total Allies . | . . Largest Group . | . . Highest-Rated Group . | . . Highest-Rated Ally . | . . Total Orders . | . . Ally Attacks . | . . Total Damage . | . . Kills . | . . Allies Corrupted . | . . Allies Melted . | . . Intel | -11 -10 ------- Run | Scr Mat Robot Analysis Total . | . . Derelict Logs Recovered . | . . Drone Launches . | . . Drone Recoveries . | . . Exploration | -11 -10 ------------- Run | Scr Mat Turns Passed 745 | 86 659 Spaces Moved 359 | 55 304 Core 18 | 18 . Treads 341 | 37 304 Legs . | . . Wheels . | . . Hover . | . . Flight . | . . Fastest Speed 50 | 50 160 Average Speed 154 | 124 160 Slowest Speed 160 | 160 160 Overloaded Moves . | . . Propulsion Burnouts . | . . Robots Hopped . | . . Cave-ins Triggered . | . . Exploration Rate (%) 27 | 4 51 Regions Visited 1 Branch Regions . Pre-discovered Areas . | . . Known Exits Taken . | . . Unknown Exits Taken 1 | 1 . Scrap Searched . | . . Spaces Dug . | . . Terrain Destroyed . | . . Melee . | . . Projectile . | . . AOE . | . . Actions | -11 -10 --------- Run | Scr Mat Total 477 | 73 404 Wait 35 | 6 29 Move 358 | 54 304 Hop . | . . Pick Up 20 | 8 12 Fast Attach . | . . Attach 12 | 5 7 Detach . | . . Swap 5 | . 5 Drop 5 | . 5 Fire 42 | . 42 Melee . | . . Ram . | . . Kick . | . . Crush . | . . Escape Stasis . | . . Rewire . | . . Trap . | . . Miscellaneous . | . . Route ------- -11/Scrapyard -10/Materials (discovered 2 exits: [*Mat] / [*Min]) History --------- Turn | Location | Event 16 | -11/Scrapyard | Discovered new exit (range 15) 87 | -11/Scrapyard | Entered Materials 294 | -10/Materials | Discovered new exit (range 13) 315 | -10/Materials | Build established: Mutant 541 | -10/Materials | Discovered new exit (range 13) 724 | -10/Materials | Core integrity fell below 50% 746 | -10/Materials | Destroyed by S-10 Pest via exploding Nuclear Reactor Last Messages --------------- 00646_ W-16 Scout sends out distress signal. 00649_ U-05 Engineer builds a Door. 00658_ Acquired Med. Storage Unit. 00660_ Dropped Sml. Storage Unit. 00666_ Acquired Med. Storage Unit. 00672_ W-16 Scout sends out distress signal. 00676_ Destroyed Hover Unit. 00682_ W-16 Scout destroyed. 00685_ Purification Channel disabled. 00704_ Power failure, Lgt. Ion Engine shutdown. 00709_ Overheating: Short circuit. 00709_ Broken Beam Cannon permanently disabled. 00714_ Beam Cannon destroyed. 00719_ Lgt. Ion Engine destroyed. 00724_ Broken Beam Cannon destroyed. 00724_ Targeting Computer destroyed. 00741_ Lgt. Treads destroyed. 00744_ Welding Torch destroyed. 00746_ Nuclear Reactor explodes. [Achievement: First Step to Greatness] Map ----- +----------------------------------------------------+ | # ## #?#%#????????????????????????? | | =#######+#########+#### ###??????????????????????? | | ##????? ?????# ^ = #??????????????????????? | | #?????? ??????# ^ #??????????????????????? | | #????? """??????# #??????????????????????? | | #????? """"??????# ^"" " #??????????????????????? | | ###?? """""?????# """" #??????????????????????? | | ### """"" #???# """ #??????????????????????? | | + """ #???# ^ #??????????????????????? | | ### #???# #??????????????????????? | | #?? #???#!% #??????????????????????? | | #???########???# =!!! ######?????????????????? | | ###### #?????# ^! #?????????????????? | | T #?????# !^ #?????????????????? | | ### #?????# ! #?????????????????? | | #?## ##?????# #### #?????????????????? | | #??# #??????# #????#?????????????????? | | ##+####+######## #??????????????????????? | | + # ! / #????#?????????????????? | | # * # # #??? #?????????????????? | | # # "???# ##+###### ##????????????????? | | # != #??????# # # ?????????????????? | | # != #??????# # + ???????????????????? | | + ! #??????# #" #????????????????????? | | # #??????+ #T #????????????????????? | | [ # """ #????? # #" s@s #????????????????????? | | # """ #????" # # s #????????????????????? | | # """ #???? ?# ##" "###????????????????????? | | # #??? ???????#"R"#??????????????????????? | | #########?? ???????#"""#??????????????????????? | | #???????????????????#####??????????????????????? | | #??????????????????????????????????????????????? | | ###??????????????????????????????????????????????? | | ?????????????????????????????????????????????????? | | ?????????????????????????????????????????????????? | | ?????????????????????????????????????????????????? | | ?????????????????????????????????????????????????? | | ?????????????????????????????????????????????????? | | ?????????????????????????????????????????????????? | | ?????????????????????????????????????????????????? | | | | | | | | | | | | | | | | | | | | | +----------------------------------------------------+ Best States ------------- Heat Dissipation 25 Energy Generation 10 Energy Capacity 525 Matter Stores 300 Matter Capacity 300 Sight Range 16 Terrain Scan Density 10 Evasion (%) 50 Recoil Reduction 2 Item Schematics ----------------- None Robot Schematics ------------------ None Fabricated ------------ Nothing Alien Tech Used ----------------- None Achievements -------------- First Step to Greatness One Hack Too Far Shopping List Uninvited Guest Challenges ------------ None Game ------ Seed MetafieldLauncherBlaster Manual? 0 Play Time 00:17:35 Cumulative 2.1 hours Start 2020.01.06 @ 17:09:50 End 2020.01.06 @ 17:23:44 Sessions 1 Manual Loads 0 Difficulty Rogue Special Mode None Game No. 6 Rogue 6 Adventurer 0 Explorer 0 Win Type - Total 0 Types 0/0/0/0/0/0/0 Lore% 1 Gallery% 6 Achievement% 1 Wizard Run 0 Options --------- ASCII 0 Keyboard 0 Movement Mouse Keybinds 0 Fullscreen 2 Font 18/SmallcapsGlow Map View 76x50 Tactical HUD 1 Map Filters NONE Filters NONE Steam 1 RUN: 6f56c40d-f687-430e-8546-98b30c0186f5